bitfinex/quotes_SOLUSD_20250617
["timestamp","ask_amount","ask_price","bid_price","bid_amount"]
[1750118586962,1.553,150.31,150.17,1.5913]
[1750118587180,6.65246939,150.33,150.19,0.42648471]
[1750118587385,26.0,150.29,150.18,18.64964886]
[1750118587878,34.4,150.32,150.18,18.64964886]
[1750118588277,34.4,150.32,150.19,0.42648471]
[1750118588478,6.65114732,150.35,150.2,23.30226364]
[1750118588661,60.42,150.31,150.21,10.52]
[1750118589262,26.0,150.28,150.21,10.52]
[1750118589680,26.0,150.24,150.14,16.9673]
[1750118589959,34.42,150.23,150.15,6.65964919]
[1750118590155,34.38,150.25,150.15,6.65964919]
[1750118590582,26.0,150.22,150.14,6.4473]
[1750118590882,34.36,150.21,150.14,13.10768219]
[1750118591284,34.36,150.21,150.14,29.7588078]
[1750118591582,34.34,150.23,150.14,29.7588078]
[1750118591791,34.34,150.23,150.15,18.64964886]
[1750118592002,34.32,150.27,150.16,0.42648471]
[1750118592491,26.0,150.23,150.16,6.65956313]
[1750118592897,26.0,150.23,150.15,6.65989361]
[1750118593200,26.0,150.24,150.15,6.65989361]
[1750118593363,26.0,150.24,150.14,13.10764639]
[1750118593556,26.0,150.24,150.14,6.4473]
[1750118593764,26.0,150.21,150.11,10.5]
[1750118593959,29.63575886,150.26,150.11,17.16160975]
[1750118594264,26.0,150.22,150.11,33.81606315]
[1750118594464,26.0,150.2,150.1,17.16222518]
[1750118594773,26.0,150.2,150.1,33.81778813]
[1750118594974,32.6569469,150.22,150.11,18.64964886]
[1750118595287,26.0,150.19,150.1,17.16222518]
[1750118595484,34.38,150.18,150.1,17.16222518]
[1750118596488,34.38,150.18,150.1,33.81778813]
[1750118597497,22.98134032,150.26,150.11,18.64964886]
[1750118597799,26.0,150.2,150.1,10.5]
[1750118597968,26.0,150.15,150.06,6.66400106]
[1750118598162,26.0,150.19,150.06,6.66400106]
[1750118598470,26.0,150.16,150.08,6.663113]
[1750118598664,26.0,150.16,150.06,6.66400106]
[1750118598881,23.30691882,150.17,150.05,12.67273485]
[1750118598882,26.0,150.14,150.05,12.67273485]
[1750118599081,60.64,150.14,150.05,12.67273485]
[1750118600080,26.0,150.17,150.07,23.32244951]
[1750118600268,34.58,150.17,150.08,18.933972]
[1750118600900,34.58,150.17,150.07,23.32244951]
[1750118601103,1.5279,150.23,150.08,18.933972]
[1750118601306,2.36541931,150.25,150.1,19.07613357]
[1750118601593,34.6,150.24,150.13,0.42648471]
[1750118601804,34.6,150.24,150.15,18.933972]
[1750118602000,34.6,150.25,150.16,23.30847096]
[1750118602226,6.654,150.3,150.16,23.30847096]
[1750118602227,6.654,150.3,150.17,18.933972]
[1750118602504,26.0,150.26,150.16,6.65956313]
[1750118603088,29.94079388,150.3,150.16,6.65956313]
[1750118603284,36.92562559,150.29,150.16,6.65956313]
[1750118603495,2.36562559,150.28,150.16,23.30847096]
[1750118603702,6.654,150.3,150.19,18.933972]
[1750118603902,8.23568891,150.32,150.2,6.6069]
[1750118604111,12.9989779,150.34,150.21,23.30071233]
[1750118604268,10.52,150.41,150.21,23.30071233]
[1750118604269,14.95757014,150.37,150.22,18.933972]
[1750118604474,8.30730538,150.37,150.25,0.14216157]
[1750118604706,2.36562379,150.4,150.25,0.14216157]
[1750118605001,6.1695,150.44,150.25,0.14216157]
[1750118605002,34.56,150.38,150.25,0.14216157]
[1750118605381,26.0,150.35,150.22,18.933972]
[1750118605593,26.0,150.31,150.21,17.15734638]
[1750118605788,34.54,150.3,150.21,17.15734638]
[1750118605995,6.65380264,150.29,150.21,17.15734638]
[1750118606299,26.0,150.26,150.21,10.5]
[1750118606524,41.19341221,150.3,150.21,10.5]
[1750118606679,26.0,150.29,150.21,10.5]
[1750118606988,26.0,150.27,150.15,6.0594]
[1750118607183,26.0,150.27,150.14,10.5]
[1750118607502,2.36198602,150.26,150.15,6.65997195]
[1750118607794,26.0,150.27,150.16,59.41950636]
[1750118608001,26.0,150.27,150.16,52.76]
[1750118608298,6.6551311,150.26,150.16,52.76]
[1750118608877,6.6551311,150.26,150.16,59.41953248]
[1750118609397,26.0,150.25,150.16,59.41953248]
[1750118609604,26.0,150.25,150.16,52.76]
[1750118609981,26.0,150.25,150.14,6.66038575]
[1750118610303,26.0,150.21,150.11,10.56]
[1750118610500,34.38,150.2,150.11,17.22164607]
[1750118610877,26.0,150.17,150.11,10.56]
[1750118612092,26.0,150.17,150.11,17.22153618]
[1750118612512,34.38,150.2,150.11,17.22153618]
[1750118612811,34.32,150.19,150.11,17.22153618]
[1750118613215,34.32,150.19,150.11,33.87598958]
[1750118613713,26.0,150.25,150.12,18.933972]
[1750118613889,34.3,150.2,150.12,18.933972]
[1750118614082,34.3,150.2,150.11,33.87598958]
[1750118614307,34.28,150.2,150.11,33.87598958]
[1750118615105,20.000667,150.26,150.12,19.07613357]
[1750118615277,34.26,150.25,150.12,19.07613357]
[1750118615477,26.0,150.24,150.12,18.933972]
[1750118616097,6.65476324,150.27,150.14,23.31157585]
[1750118616411,26.0,150.23,150.14,23.31157585]
[1750118616711,26.0,150.23,150.14,6.66045024]
[1750118617789,34.22,150.22,150.12,42.24865358]
[1750118617995,34.22,150.22,150.12,23.31468158]
[1750118618197,26.0,150.19,150.12,6.66133759]
[1750118618703,34.22,150.22,150.12,6.66133759]
[1750118618889,34.16,150.21,150.12,6.66133759]
[1750118619289,34.16,150.21,150.12,25.31098645]
[1750118619705,34.16,150.21,150.12,41.96433044]
[1750118619895,34.16,150.21,150.12,6.66133759]
[1750118619896,40.81749577,150.21,150.12,6.66133759]
[1750118620094,34.16,150.21,150.12,6.66133759]
[1750118620394,6.6231,150.33,150.18,18.64964886]
[1750118620709,6.6231,150.33,150.19,0.42648471]
[1750118621009,86.00312012,150.41,150.17,1.5611]
[1750118621010,6.6231,150.38,150.24,6.5678]
[1750118621214,1.5121,150.42,150.26,0.42648471]
[1750118621387,26.0,150.4,150.26,0.42648471]
[1750118621587,34.12,150.39,150.27,24.93870878]
[1750118621814,26.0,150.36,150.27,6.65468822]
[1750118622196,34.12,150.39,150.27,6.65468822]
[1750118622402,26.0,150.36,150.27,6.65468822]
[1750118622596,26.0,150.36,150.24,6.5678]
[1750118622797,26.0,150.36,150.25,23.29450914]
[1750118622988,26.0,150.36,150.25,6.65557404]
[1750118623709,26.0,150.32,150.23,6.65646009]
[1750118623906,34.08,150.31,150.23,6.65646009]
[1750118624616,34.08,150.31,150.24,18.933972]
[1750118624811,34.02,150.34,150.25,0.14216157]
[1750118625405,6.64849411,150.41,150.25,0.14216157]
[1750118625602,6.64724636,150.44,150.31,18.64964886]
[1750118625797,34.02,150.43,150.32,10.84432314]
[1750118625995,26.0,150.4,150.32,10.56]
[1750118626616,34.02,150.43,150.32,10.56]
[1750118627021,26.0,150.4,150.32,10.56]
[1750118627199,26.0,150.4,150.25,1.6239]
[1750118627399,26.0,150.36,150.26,6.6551311]
[1750118627606,34.14,150.35,150.26,6.6551311]
[1750118627830,26.0,150.36,150.26,6.6551311]
[1750118628014,34.16,150.35,150.26,23.29295886]
[1750118628613,34.16,150.35,150.27,18.933972]
[1750118629004,22.81967433,150.45,150.28,0.14216157]
[1750118629202,34.30216157,150.44,150.28,0.14216157]
[1750118629406,6.2022,150.45,150.3,26.0]
[1750118629698,66.80739015,150.44,150.34,6.65158972]
[1750118629904,60.16,150.44,150.34,6.65158972]
[1750118630299,26.0,150.41,150.29,6.65380264]
[1750118630500,26.0,150.37,150.28,17.21417627]
[1750118630701,34.12,150.36,150.28,10.56]
[1750118631702,6.65114732,150.35,150.28,10.56]
[1750118633234,26.0,150.32,150.21,17.21734638]
[1750118633604,26.0,150.32,150.21,10.56]
[1750118633805,26.0,150.27,150.21,10.56]
[1750118634036,34.04,150.26,150.21,10.56]
[1750118634426,34.04,150.26,150.15,8.25949175]
[1750118634607,26.0,150.23,150.15,6.65959175]
[1750118634813,26.0,150.23,150.14,10.56]
[1750118635010,26.0,150.22,150.14,10.56]
[1750118635211,26.0,150.21,150.07,63.28]
[1750118635701,26.0,150.15,150.0,6.66628963]
[1750118635904,26.0,150.15,150.0,23.33295629]
[1750118635905,26.0,150.11,150.0,23.33295629]
[1750118636115,0.14216157,150.17,150.0,33.33295629]
[1750118636301,33.96,150.16,150.0,23.33295629]
[1750118636504,59.96,150.16,150.01,18.64964886]
[1750118636735,26.0,150.16,150.02,0.14216157]
[1750118636935,33.94,150.15,150.05,0.14216157]
[1750118637231,33.94,150.15,150.07,19.07613357]
[1750118637426,26.0,150.2,150.07,19.07613357]
[1750118637627,26.0,150.2,150.1,0.14216157]
[1750118637628,33.92,150.2,150.1,0.14216157]
[1750118637934,33.92,150.2,150.13,23.31312861]
[1750118638131,33.92,150.23,150.14,19.07613357]
[1750118638427,6.6215,150.29,150.16,19.07613357]
[1750118638632,33.9,150.25,150.16,19.07613357]
[1750118639407,6.65332286,150.31,150.18,19.07613357]
[1750118639607,33.86,150.26,150.18,19.07613357]
[1750118639829,33.84,150.27,150.18,19.07613357]
[1750118640333,12.90655035,150.35,150.18,19.07613357]
[1750118640546,33.8,150.34,150.17,23.30691882]
[1750118640836,26.0,150.26,150.14,10.16]
[1750118641044,26.0,150.22,150.14,10.16]
[1750118641427,33.86,150.21,150.14,10.16]
[1750118641614,0.14216157,150.27,150.14,16.82030413]
[1750118641816,26.0,150.23,150.14,10.16]
[1750118642334,33.84,150.22,150.14,10.16]
[1750118642508,26.0,150.19,150.08,1.6164]
[1750118642705,26.0,150.18,150.07,16.32347339]
[1750118642936,26.0,150.18,150.07,9.66]
[1750118643241,26.0,150.14,150.01,1.6662]
[1750118643532,18.79181043,150.17,150.0,16.82665608]
[1750118643533,26.0,150.1,150.0,16.82665608]
[1750118643714,26.0,150.1,150.0,10.16]
[1750118644106,26.0,150.09,149.94,6.6693344]
[1750118644331,26.0,150.08,149.94,6.6693344]
[1750118644528,26.0,150.08,149.93,10.16]
[1750118644713,0.42648471,150.07,149.93,10.16]
[1750118644920,0.42648471,150.07,149.89,16.67854329]
[1750118644921,26.0,150.03,149.89,16.67854329]
[1750118645427,26.0,149.98,149.86,26.84174227]
[1750118645734,33.86,149.97,149.88,6.67200427]
[1750118645907,26.0,149.94,149.86,10.16]
[1750118646112,26.0,149.94,149.87,11.64244014]
[1750118646313,26.0,149.98,149.87,11.64244014]
[1750118646531,26.0,149.98,149.87,28.32356378]
[1750118646723,33.82,149.97,149.87,28.32356378]
[1750118647036,33.8,150.03,149.89,0.42648471]
[1750118647332,16.65445356,150.11,149.94,0.42648471]
[1750118647333,33.8,150.04,149.94,0.42648471]
[1750118647638,33.8,150.04,149.96,0.28432314]
[1750118647817,6.66178136,150.11,149.96,19.07613357]
[1750118648020,33.8,150.1,149.96,19.07613357]
[1750118648316,6.66178136,150.11,149.96,19.07613357]
[1750118648542,33.78,150.1,149.96,19.07613357]
[1750118648747,6.65867625,150.18,149.96,19.07613357]
[1750118648945,6.65867625,150.18,150.0,19.07613357]
[1750118649241,26.0,150.14,150.0,19.07613357]
[1750118649561,33.76,150.17,150.0,19.07613357]
[1750118649562,26.0,150.1,150.01,6.66622225]
[1750118649731,33.76,150.09,150.01,6.66622225]
[1750118650043,26.0,150.06,149.93,10.16]
[1750118650418,26.14216157,150.05,149.94,6.66891453]
[1750118650621,26.0,150.05,149.95,59.44865293]
[1750118650822,33.74,150.04,149.95,76.120877]
[1750118651020,33.74,150.04,149.96,0.28432314]
[1750118651430,33.74,150.04,149.95,52.78]
[1750118651743,0.14216157,150.1,149.96,0.28432314]
[1750118651946,26.0,150.06,149.95,52.78]
[1750118652454,33.7,150.06,149.96,18.933972]
[1750118652621,6.66178136,150.11,149.97,0.14216157]
[1750118652820,33.68,150.1,149.97,0.14216157]
[1750118653048,6.6615203,150.12,149.97,0.14216157]
[1750118653248,33.66,150.11,149.97,0.14216157]
[1750118653440,33.66,150.11,149.99,19.07613357]
[1750118653622,40.3219544,150.11,149.99,0.28432314]
[1750118653824,26.0,150.08,149.96,6.66801847]
[1750118654033,26.0,150.08,149.96,23.33913076]
[1750118654240,26.0,150.07,149.97,0.28432314]
[1750118654439,40.3219544,150.11,149.97,18.933972]
[1750118654755,33.68,150.1,149.98,0.14216157]
[1750118655541,33.68,150.1,150.0,19.07613357]
[1750118656119,6.66000666,150.15,150.0,19.07613357]
[1750118656336,33.6,150.14,150.0,19.07613357]
[1750118656546,26.0,150.11,150.0,19.07613357]
[1750118656731,26.0,150.11,149.99,6.66711114]
[1750118657352,6.66000666,150.15,150.0,18.64964886]
[1750118657535,149.1,150.16,150.03,0.42648471]
[1750118657848,26.0,150.12,150.04,10.16]
[1750118658147,26.0,150.12,150.02,0.28432314]
[1750118658748,32.66178098,150.12,150.03,6.66533359]
[1750118658949,32.66178098,150.12,150.01,16.82591481]
[1750118659147,18.79181043,150.11,150.01,10.16]
[1750118659366,49.31512497,150.12,150.01,10.16]
[1750118659540,32.66178098,150.12,150.01,16.82618577]
[1750118659739,33.6,150.11,150.01,16.82618577]
[1750118659927,26.0,150.08,150.01,10.16]
[1750118660129,26.0,150.04,149.95,52.78]
[1750118660342,33.58,150.03,149.95,52.78]
[1750118660754,26.0,150.0,149.95,52.78]
[1750118661452,33.58,150.03,149.95,59.44877533]
[1750118661657,149.1,150.12,149.97,0.42648471]
[1750118661838,33.62,150.11,149.97,0.42648471]
[1750118662342,26.0,150.08,149.97,0.42648471]
[1750118662736,6.66222518,150.1,149.99,0.28432314]
[1750118662957,6.66222518,150.1,149.98,6.66755567]
[1750118663256,26.0,150.07,149.96,6.95233192]
[1750118663454,26.0,150.07,149.95,52.78]
[1750118663660,23.60211127,150.1,149.95,52.78]
[1750118663661,26.0,150.03,149.95,52.78]
[1750118663844,33.6,150.02,149.95,59.44865888]
[1750118664042,23.60211127,150.1,149.95,59.44865888]
[1750118664043,26.0,150.07,149.96,0.28432314]
[1750118664350,33.6,150.06,149.97,0.14216157]
[1750118664556,6.66089389,150.13,149.97,0.14216157]
[1750118664761,23.30909662,150.16,150.0,18.933972]
[1750118664939,6.65956313,150.16,150.01,0.14216157]
[1750118665129,26.0,150.12,150.0,18.933972]
[1750118665328,26.0,150.12,150.01,0.14216157]
[1750118665535,6.4974,150.21,150.04,19.07613357]
[1750118665734,13.15479098,150.21,150.06,0.42648471]
[1750118665936,33.64,150.2,150.06,19.07613357]
[1750118666145,6.65739098,150.21,150.06,19.07613357]
[1750118666357,26.0,150.17,150.06,18.933972]
[1750118666590,6.65739098,150.21,150.07,18.79181043]
[1750118666734,23.29677042,150.24,150.09,18.933972]
[1750118666937,6.65601703,150.24,150.09,18.933972]
[1750118667143,33.62,150.23,150.1,0.14216157]
[1750118667371,6.65601703,150.24,150.1,0.14216157]
[1750118667668,26.0,150.2,150.09,0.28432314]
[1750118667832,26.0,150.2,150.07,16.82349975]
[1750118668038,26.0,150.2,150.08,0.14216157]
[1750118668263,26.0,150.2,150.07,10.16]
[1750118668641,44.64964886,150.19,150.07,10.16]
[1750118668846,26.0,150.14,150.07,10.16]
[1750118669051,26.0,150.1,150.0,10.16]
[1750118670348,0.14216157,150.18,150.0,10.16]
[1750118670349,23.30691882,150.17,150.01,18.64964886]
[1750118670550,6.65911966,150.17,150.02,0.42648471]
[1750118670761,66.15979513,150.16,150.05,0.14216157]
[1750118671266,40.15979513,150.16,150.05,0.14216157]
[1750118671482,33.5,150.16,150.05,0.14216157]
[1750118671964,33.5,150.16,150.04,18.933972]
[1750118671965,40.15960099,150.16,150.04,18.933972]
[1750118672350,26.0,150.13,150.03,6.66533359]
[1750118672550,26.0,150.13,150.02,9.92]
[1750118672551,26.0,150.13,150.02,16.58573661]
[1750118672953,6.65956313,150.16,150.02,16.58573661]
[1750118673262,26.0,150.12,150.02,16.58573661]
[1750118673667,26.0,150.12,150.03,18.64964886]
[1750118673846,26.0,150.15,150.04,0.42648471]
[1750118674036,33.54,150.14,150.04,0.28432314]
[1750118674240,26.0,150.11,150.02,16.58573661]
[1750118674566,26.0,150.11,150.02,9.92]
[1750118674742,4.66771047,150.1,150.01,6.66614189]
[1750118674943,26.0,150.06,149.98,16.4157]
[1750118675143,26.0,150.06,149.92,6.0173]
[1750118675144,26.0,150.02,149.92,6.0173]
[1750118675448,4.67176363,150.01,149.91,9.92]
[1750118675651,26.0,150.0,149.91,9.92]
[1750118675960,4.67176363,149.99,149.91,16.59057491]
[1750118676163,26.0,149.97,149.91,16.59057491]
[1750118676357,23.31934172,150.09,149.92,18.933972]
[1750118676545,26.0,150.05,149.93,0.14216157]
[1750118676863,38.27643549,150.04,149.95,0.28432314]
[1750118677072,33.6,150.04,149.93,23.3442273]
[1750118677271,26.0,150.01,149.93,6.66977923]
[1750118677438,26.0,150.01,149.92,16.59017274]
[1750118677439,4.68329719,150.0,149.92,16.59017274]
[1750118677646,4.68329719,150.0,149.92,9.92]
[1750118678679,30.68329719,149.99,149.92,9.92]
[1750118678976,26.0,149.92,149.87,4.97018233]
[1750118679175,5.79732976,150.08,149.88,7.8568]
[1750118679346,38.00692673,150.07,149.89,19.07613357]
[1750118679645,26.0,150.03,149.87,28.32363158]
[1750118679845,26.0,149.99,149.88,0.14216157]
[1750118680063,26.0,149.95,149.88,0.28432314]
[1750118680463,26.0,149.95,149.87,11.64250794]
[1750118680662,4.68711487,149.94,149.87,11.64250794]
[1750118680865,26.0,149.95,149.87,4.97018233]
[1750118680866,4.68711487,149.93,149.87,4.97018233]
[1750118681066,26.0,149.9,149.87,4.97018233]
[1750118681350,26.0,149.88,149.87,4.97018233]
[1750118681555,4.68711487,149.88,149.87,4.97018233]
[1750118682178,33.62,149.89,149.87,3.30358233]
[1750118682380,26.0,149.84,149.73,6.6786883]
[1750118682885,6.67423079,149.83,149.7,6.68002672]
[1750118683056,6.67423079,149.83,149.7,23.38009352]
[1750118683057,26.0,149.79,149.7,23.38009352]
[1750118683688,26.0,149.79,149.69,6.68043111]
[1750118684173,26.0,149.79,149.69,23.38161355]
[1750118684493,26.0,149.79,149.69,6.68043111]
[1750118684663,19.07613357,149.84,149.69,23.38161355]
[1750118684857,33.6,149.78,149.69,23.38161355]
[1750118685090,33.58,149.81,149.69,16.70118244]
[1750118685260,6.67155914,149.89,149.7,18.64964886]
[1750118685460,6.67155914,149.89,149.72,18.64964886]
[1750118685461,33.58,149.88,149.72,18.64964886]
[1750118685674,33.58,149.88,149.73,0.42648471]
[1750118685991,6.67138092,149.9,149.73,0.42648471]
[1750118686174,33.6,149.89,149.73,0.42648471]
[1750118686362,26.0,149.86,149.73,0.42648471]
[1750118686764,33.6,149.89,149.76,0.28432314]
[1750118686966,33.6,149.89,149.78,0.28432314]
[1750118687195,52.82,149.97,149.78,19.07613357]
[1750118687491,71.46964886,149.97,149.78,19.07613357]
[1750118687785,33.58,149.94,149.79,6.3384]
[1750118687953,26.0,149.91,149.8,0.28432314]
[1750118688159,33.58,149.94,149.8,0.28432314]
[1750118688360,16.58894534,149.95,149.8,28.99613357]
[1750118688663,6.5959,149.96,149.8,28.99613357]
[1750118688664,9.92,150.02,149.8,28.99613357]
[1750118689056,6.66666666,150.0,149.82,19.07613357]
[1750118689261,33.54,149.99,149.82,19.07613357]
[1750118689476,33.54,149.99,149.81,6.67512182]
[1750118689477,26.0,149.91,149.81,6.67512182]
[1750118689690,33.52,149.9,149.82,0.14216157]
[1750118689909,33.52,149.9,149.82,18.933972]
[1750118690192,33.52,149.9,149.83,0.14216157]
[1750118690362,33.52,149.9,149.82,18.933972]
[1750118690556,33.52,149.9,149.82,0.28432314]
[1750118690964,33.52,149.9,149.81,23.36292637]
[1750118691195,33.52,149.9,149.81,16.68780455]
[1750118691371,33.52,149.9,149.82,0.14216157]
[1750118691572,33.52,149.9,149.8,16.59556742]
[1750118691573,26.0,149.87,149.8,16.59556742]
[1750118691778,26.0,149.87,149.78,6.67606362]
[1750118691991,26.0,149.87,149.77,6.67684144]
[1750118692775,26.0,149.87,149.77,23.3691029]
[1750118693066,26.0,149.85,149.79,6.67601308]
[1750118693465,6.4284,149.92,149.79,6.67601308]
[1750118693667,6.66622225,150.01,149.8,0.28432314]
[1750118693873,34.04,150.0,149.81,0.14216157]
[1750118694074,26.0,149.97,149.83,0.28432314]
[1750118694266,34.04,149.96,149.83,19.07613357]
[1750118694482,23.33177787,150.01,149.83,19.07613357]
[1750118694681,6.66622225,150.01,149.83,19.07613357]
[1750118694887,34.04,150.0,149.86,0.14216157]
[1750118695110,8.35148822,150.02,149.88,20.73723357]
[1750118695807,34.0,150.07,149.94,19.07613357]
[1750118696013,34.0,150.07,149.97,0.42648471]
[1750118696170,60.0,150.07,149.97,0.42648471]
[1750118696377,66.66372276,150.07,149.97,0.28432314]
[1750118696700,9.92,150.13,149.97,0.28432314]
[1750118696999,40.62133759,150.12,149.97,0.28432314]
[1750118697170,26.0,150.09,149.99,0.28432314]
[1750118697370,26.0,150.08,149.99,0.28432314]
[1750118697570,26.0,150.08,149.98,6.66755567]
[1750118697999,0.14216157,150.07,149.95,9.92]
[1750118698201,0.14216157,150.07,149.9,6.67111407]
[1750118698202,26.0,150.04,149.9,6.67111407]
[1750118698396,18.79181043,150.07,149.9,6.67111407]
[1750118698397,26.0,150.0,149.9,6.67111407]
[1750118699289,33.9,150.03,149.91,19.07613357]
[1750118699474,26.0,150.02,149.91,19.07613357]
[1750118700088,59.86,150.02,149.91,19.07613357]
[1750118700298,18.649649,150.16,149.94,19.07613357]
[1750118700498,6.66089389,150.13,149.98,19.07613357]
[1750118700700,33.84,150.12,150.01,0.28432314]
[1750118700889,8.23606682,150.15,150.01,19.07613357]
[1750118701078,8.23606682,150.15,150.05,19.07613357]
[1750118701271,6.65832037,150.19,150.07,19.07613357]
[1750118701471,6.65646009,150.23,150.09,0.28432314]
[1750118701672,16.7978,150.21,150.08,10.12]
[1750118701891,6.65557404,150.25,150.12,0.28432314]
[1750118702196,33.86,150.24,150.12,18.933972]
[1750118702372,26.0,150.21,150.13,0.42648471]
[1750118702576,26.0,150.21,150.13,0.28432314]
[1750118702791,26.0,150.21,150.09,0.28432314]
[1750118702993,26.0,150.21,149.85,17.97606378]
[1750118702994,26.0,150.14,149.99,16.78711114]
[1750118703196,26.0,150.06,150.0,18.64964886]
[1750118703390,26.0,150.06,149.99,16.78711114]
[1750118703391,34.04,150.05,149.97,6.66761622]
[1750118703806,26.0,150.02,149.94,10.12]
[1750118704180,26.0,150.02,149.9,1.5271]
[1750118704593,26.0,150.02,149.87,16.79204743]
[1750118704921,26.0,150.0,149.87,16.79204743]
[1750118705281,26.0,149.96,149.87,16.79204743]
[1750118705483,60.32,149.96,149.87,16.79204743]
[1750118705690,34.32,149.96,149.87,33.47317107]
[1750118705913,26.0,150.05,149.87,33.47317107]
[1750118706206,26.0,150.01,149.89,0.42648471]
[1750118706419,34.28,150.03,149.89,0.42648471]
[1750118706709,60.28,150.03,149.89,19.07613357]
[1750118707005,26.0,150.0,149.89,0.42648471]
[1750118707183,26.0,150.0,149.87,33.47317107]
[1750118707382,32.66706634,150.0,149.87,33.47317107]
[1750118707583,32.66706634,150.0,149.87,16.79204743]
[1750118707783,6.66613436,150.02,149.88,18.64964886]
[1750118707986,60.26,150.01,149.89,0.28432314]
[1750118708193,6.663557,150.07,149.89,0.42648471]
[1750118708395,26.0,150.03,149.89,0.42648471]
[1750118708786,25.9,150.03,149.89,0.42648471]
[1750118709426,6.607,150.09,149.91,19.07613357]
[1750118709595,6.66273675,150.09,149.94,19.07613357]
[1750118709926,6.66218509,150.11,149.97,6.35512314]
[1750118710096,34.3,150.1,150.0,0.28432314]
[1750118710301,6.66089389,150.13,150.0,0.28432314]
[1750118710619,34.3,150.12,150.0,0.28432314]
[1750118710823,13.13902108,150.15,150.0,0.42648471]
[1750118711015,34.28,150.11,150.0,0.42648471]
[1750118711215,6.65778961,150.2,150.0,0.42648471]
[1750118711414,26.0,150.15,150.02,19.07613357]
[1750118711720,10.0,150.17,149.99,0.28432314]
[1750118711932,26.0,150.09,149.98,6.66755567]
[1750118712092,34.28,150.08,149.99,0.28432314]
[1750118712920,34.28,150.08,149.98,6.66755567]
[1750118713421,0.14216157,150.14,149.99,0.28432314]
[1750118713604,34.26,150.13,149.99,0.28432314]
[1750118713801,6.65911966,150.17,149.99,0.28432314]
[1750118714023,6.65778961,150.2,150.02,19.07613357]
[1750118714211,12.72471789,150.21,150.02,19.07613357]
[1750118714416,34.28,150.19,150.02,29.19613357]
[1750118714613,26.0,150.16,150.02,29.19613357]
[1750118714806,26.0,150.16,150.02,19.07613357]
[1750118715007,6.65741789,150.21,150.08,18.64964886]
[1750118715201,6.65695276,150.22,150.1,0.28432314]
[1750118715435,40.91761466,150.21,150.11,6.66178136]
[1750118715629,57.56098061,150.21,150.09,10.12]
[1750118715832,26.0,150.17,150.09,10.12]
[1750118716425,0.14216157,150.16,150.04,6.66488936]
[1750118716626,26.0,150.11,149.95,16.804919]
[1750118716808,26.0,150.06,149.95,23.47354305]
[1750118717134,26.0,150.06,149.95,23.34084812]
[1750118717318,34.26,150.05,149.95,23.34084812]
[1750118717631,34.26,150.05,149.96,18.64964886]
[1750118717834,34.26,150.05,149.97,0.14216157]
[1750118718012,34.26,150.05,149.97,0.28432314]
[1750118718526,34.24,150.07,149.97,0.42648471]
[1750118718728,34.26,150.08,149.97,0.42648471]
[1750118719532,34.26,150.08,149.99,0.28432314]
[1750118719708,40.9232426,150.08,149.99,0.28432314]
[1750118719911,26.0,150.05,149.98,6.66755567]
[1750118720212,40.9232426,150.08,149.98,6.66755567]
[1750118720414,8.0313,150.15,149.99,19.07613357]
[1750118720630,34.32216157,150.14,149.99,19.07613357]
[1750118720833,26.0,150.11,149.99,0.28432314]
[1750118721030,34.32216157,150.14,149.99,0.28432314]
[1750118721218,0.14216157,150.14,149.99,0.28432314]
[1750118721424,34.18,150.13,150.01,0.28432314]
[1750118721606,26.0,150.09,150.02,6.66577789]
[1750118721933,6.66045024,150.14,150.03,0.28432314]
[1750118722128,34.16,150.13,150.03,18.933972]
[1750118722327,34.16,150.13,149.95,43.34353858]
[1750118722328,34.14,150.12,150.01,6.66620282]